[Event "*** Titled Tuesday 3|2 Blitz"]
[Site "Chess.com"]
[Date "2015.10.06"]
[Round "8"]
[White "HansCoolNiemann"]
[Black "Jahonas"]
[Result "1-0"]
[WhiteElo "2124"]
[BlackElo "2059"]
[TimeControl "180+2"]
[EndTime "18:41:14 PDT"]
[Termination "HansCoolNiemann won by resignation"]

1. d4 {[%clk 0:03:01.9]} 1... d5 {[%clk 0:02:59.7]} 2. c4 {[%clk 0:02:59.8]}
2... c6 {[%clk 0:03:01.1]} 3. Nf3 {[%clk 0:03:00.4]} 3... Nf6 {[%clk 0:03:02.5]}
4. Nc3 {[%clk 0:03:01]} 4... dxc4 {[%clk 0:03:03.5]} 5. a4 {[%clk 0:02:58.9]}
5... Bf5 {[%clk 0:03:04.1]} 6. e3 {[%clk 0:02:59.1]} 6... e6 {[%clk 0:03:05.4]}
7. Bxc4 {[%clk 0:02:55.7]} 7... Bb4 {[%clk 0:03:06.2]} 8. O-O {[%clk 0:02:56]}
8... O-O {[%clk 0:03:06.6]} 9. Re1 {[%clk 0:02:54.6]} 9... Bg6 {[%clk
0:03:06.4]} 10. Ne5 {[%clk 0:02:52.8]} 10... Nbd7 {[%clk 0:03:06.6]} 11. Nxg6
{[%clk 0:02:52.8]} 11... hxg6 {[%clk 0:03:07.3]} 12. Bd2 {[%clk 0:02:54]} 12...
Qe7 {[%clk 0:03:05.9]} 13. a5 {[%clk 0:02:52.9]} 13... b5 {[%clk 0:02:59.9]} 14.
Bd3 {[%clk 0:02:44.8]} 14... a6 {[%clk 0:03:00.5]} 15. Ne4 {[%clk 0:02:44.9]}
15... Nxe4 {[%clk 0:02:57.9]} 16. Bxe4 {[%clk 0:02:43]} 16... Rac8 {[%clk
0:02:50.3]} 17. Rc1 {[%clk 0:02:41.8]} 17... Bxd2 {[%clk 0:02:29.4]} 18. Qxd2
{[%clk 0:02:40.8]} 18... Qd6 {[%clk 0:02:29.6]} 19. b4 {[%clk 0:02:33.7]} 19...
Nf6 {[%clk 0:02:26.2]} 20. Bf3 {[%clk 0:02:32.3]} 20... Nd5 {[%clk 0:02:26.7]}
21. Rc5 {[%clk 0:02:32.6]} 21... e5 {[%clk 0:02:23.6]} 22. Rec1 {[%clk
0:02:30.4]} 22... Rcd8 {[%clk 0:01:58.5]} 23. Bxd5 {[%clk 0:02:19.3]} 23... cxd5
{[%clk 0:01:55.7]} 24. Rc6 {[%clk 0:02:19.7]} 24... Qe7 {[%clk 0:01:31.3]} 25.
Rc7 {[%clk 0:02:17.2]} 25... Qg5 {[%clk 0:01:26.9]} 26. dxe5 {[%clk 0:02:15.6]}
26... Qxe5 {[%clk 0:01:26.7]} 27. Qd4 {[%clk 0:02:14.7]} 27... Qxd4 {[%clk
0:01:22.4]} 28. exd4 {[%clk 0:02:16.6]} 28... Rd6 {[%clk 0:01:22.5]} 29. R7c6
{[%clk 0:02:13.3]} 29... Rfd8 {[%clk 0:01:23.2]} 30. Rxd6 {[%clk 0:02:11.7]}
30... Rxd6 {[%clk 0:01:23.7]} 31. Rc8+ {[%clk 0:02:12.4]} 31... Kh7 {[%clk
0:01:24.1]} 32. Rc7 {[%clk 0:02:13.9]} 32... f6 {[%clk 0:01:16.6]} 33. f3 {[%clk
0:02:11.4]} 33... g5 {[%clk 0:01:14.2]} 34. Kf2 {[%clk 0:02:12.4]} 34... Kg6
{[%clk 0:01:15.4]} 35. Kg3 {[%clk 0:02:12.6]} 35... Kf5 {[%clk 0:01:15.6]} 36.
Kf2 {[%clk 0:02:13.1]} 36... g6 {[%clk 0:01:15.9]} 37. g3 {[%clk 0:02:10.7]}
37... g4 {[%clk 0:01:16]} 38. fxg4+ {[%clk 0:02:09]} 38... Kxg4 {[%clk
0:01:17.1]} 39. h3+ {[%clk 0:02:03.7]} 39... Kf5 {[%clk 0:01:18.1]} 40. Kf3
{[%clk 0:01:48.5]} 40... Ke6 {[%clk 0:00:55.2]} 41. g4 {[%clk 0:01:46.7]} 41...
g5 {[%clk 0:00:54.1]} 42. Ke3 {[%clk 0:01:38.6]} 42... Rd7 {[%clk 0:00:54.7]}
43. Rc6+ {[%clk 0:01:37.1]} 43... Rd6 {[%clk 0:00:55.6]} 44. Rc7 {[%clk
0:01:32.3]} 44... Rd7 {[%clk 0:00:56.6]} 45. Rc8 {[%clk 0:01:33.7]} 45... Kf7
{[%clk 0:00:51.7]} 46. Rc6 {[%clk 0:01:30]} 46... Ke7 {[%clk 0:00:51.3]} 47.
Rxa6 {[%clk 0:01:29.3]} 47... Rc7 {[%clk 0:00:52.3]} 48. Rb6 {[%clk 0:01:27.3]}
48... Rc3+ {[%clk 0:00:51.4]} 49. Kd2 {[%clk 0:01:27.4]} 1-0

[Event "*** Titled Tuesday 3|2 Blitz"]
[Site "Chess.com"]
[Date "2015.10.06"]
[Round "8"]
[White "KyronGriffith"]
[Black "Penguininja"]
[Result "0-1"]
[WhiteElo "2221"]
[BlackElo "2152"]
[TimeControl "180+2"]
[EndTime "18:41:18 PDT"]
[Termination "Penguininja won by resignation"]

1. e4 {[%clk 0:03:01.9]} 1... e5 {[%clk 0:03:00.8]} 2. Nf3 {[%clk 0:03:02]} 2...
Nc6 {[%clk 0:03:02.5]} 3. Bb5 {[%clk 0:03:03.5]} 3... f5 {[%clk 0:03:04]} 4. d3
{[%clk 0:03:00.6]} 4... fxe4 {[%clk 0:03:05.2]} 5. dxe4 {[%clk 0:03:01.8]} 5...
Nf6 {[%clk 0:03:06.9]} 6. Nc3 {[%clk 0:03:02.7]} 6... Bb4 {[%clk 0:03:07.5]} 7.
Bg5 {[%clk 0:02:50.3]} 7... d6 {[%clk 0:03:01.8]} 8. O-O {[%clk 0:02:45]} 8...
Bxc3 {[%clk 0:03:00.5]} 9. bxc3 {[%clk 0:02:45.2]} 9... O-O {[%clk 0:03:01.3]}
10. Qd3 {[%clk 0:02:37]} 10... Qe8 {[%clk 0:02:56.3]} 11. Rab1 {[%clk
0:02:28.4]} 11... Be6 {[%clk 0:02:39.6]} 12. Bc4 {[%clk 0:02:26.4]} 12... b6
{[%clk 0:02:37.1]} 13. a4 {[%clk 0:02:18.5]} 13... Qf7 {[%clk 0:02:15.8]} 14.
Bxe6 {[%clk 0:02:02.2]} 14... Qxe6 {[%clk 0:02:17.7]} 15. Nd2 {[%clk 0:01:59.5]}
15... h6 {[%clk 0:02:06.5]} 16. Bxf6 {[%clk 0:01:57.7]} 16... Rxf6 {[%clk
0:02:05.6]} 17. f3 {[%clk 0:01:58]} 17... Na5 {[%clk 0:02:03.8]} 18. Rb4 {[%clk
0:01:50.4]} 18... Nb7 {[%clk 0:02:02.8]} 19. Qc4 {[%clk 0:01:46.4]} 19... Nc5
{[%clk 0:01:59.5]} 20. a5 {[%clk 0:01:41.2]} 20... bxa5 {[%clk 0:01:41.7]} 21.
Rb5 {[%clk 0:01:26.8]} 21... Qxc4 {[%clk 0:01:29.4]} 22. Nxc4 {[%clk 0:01:26.9]}
22... Na4 {[%clk 0:01:08.6]} 23. Ra1 {[%clk 0:01:18.9]} 23... Nxc3 {[%clk
0:00:58.7]} 24. Rb7 {[%clk 0:01:17.3]} 24... Rff8 {[%clk 0:00:49]} 25. Rxa5
{[%clk 0:01:14.1]} 25... Rfb8 {[%clk 0:00:49]} 26. Rxb8+ {[%clk 0:01:11.2]}
26... Rxb8 {[%clk 0:00:50.9]} 27. Rxa7 {[%clk 0:01:11.8]} 27... Rb1+ {[%clk
0:00:38.9]} 28. Kf2 {[%clk 0:01:12]} 28... Rc1 {[%clk 0:00:37.4]} 29. Rxc7
{[%clk 0:01:08.6]} 29... Rxc2+ {[%clk 0:00:38.3]} 30. Kg3 {[%clk 0:00:56.4]}
30... Ne2+ {[%clk 0:00:34.1]} 31. Kh4 {[%clk 0:00:54.8]} 31... Nf4 {[%clk
0:00:25.8]} 32. Rc8+ {[%clk 0:00:52.9]} 32... Kh7 {[%clk 0:00:13.9]} 33. Nxd6
{[%clk 0:00:54.8]} 33... Rxg2 {[%clk 0:00:12.7]} 34. Nf7 {[%clk 0:00:50.9]}
34... g5+ {[%clk 0:00:12.8]} 0-1

[Event "*** Titled Tuesday 3|2 Blitz"]
[Site "Chess.com"]
[Date "2015.10.06"]
[Round "8"]
[White "LePlusMortel"]
[Black "MFBerna"]
[Result "1-0"]
[WhiteElo "2395"]
[BlackElo "2145"]
[TimeControl "180+2"]
[EndTime "18:41:33 PDT"]
[Termination "LePlusMortel won on time"]

1. Nf3 {[%clk 0:03:01.9]} 1... d5 {[%clk 0:03:00.3]} 2. d4 {[%clk 0:02:58.9]}
2... Nf6 {[%clk 0:03:00.8]} 3. Bf4 {[%clk 0:03:00]} 3... c6 {[%clk 0:03:00.4]}
4. Nbd2 {[%clk 0:03:00.7]} 4... Bf5 {[%clk 0:03:01.1]} 5. c4 {[%clk 0:03:01.7]}
5... e6 {[%clk 0:03:01.8]} 6. Qb3 {[%clk 0:03:02.8]} 6... Qb6 {[%clk 0:03:02]}
7. c5 {[%clk 0:03:04.2]} 7... Qxb3 {[%clk 0:03:03.1]} 8. axb3 {[%clk 0:03:06.1]}
8... Na6 {[%clk 0:02:58.9]} 9. Rxa6 {[%clk 0:03:06.3]} 9... bxa6 {[%clk
0:02:59.3]} 10. e3 {[%clk 0:03:08]} 10... Nh5 {[%clk 0:02:47.8]} 11. Be5 {[%clk
0:03:09]} 11... f6 {[%clk 0:02:47.7]} 12. Bc7 {[%clk 0:03:10]} 12... Kd7 {[%clk
0:02:46.9]} 13. Ba5 {[%clk 0:03:09.8]} 13... Be7 {[%clk 0:02:39.3]} 14. h3
{[%clk 0:03:10.1]} 14... Bg6 {[%clk 0:02:07.3]} 15. g4 {[%clk 0:03:09.5]} 15...
Rhb8 {[%clk 0:01:57]} 16. Kd1 {[%clk 0:02:59.7]} 16... Bd8 {[%clk 0:01:46.9]}
17. Bxd8 {[%clk 0:02:59.1]} 17... Kxd8 {[%clk 0:01:48.8]} 18. Bxa6 {[%clk
0:02:55.1]} 18... Kc7 {[%clk 0:01:37.5]} 19. Rg1 {[%clk 0:02:48.9]} 19... Rg8
{[%clk 0:01:29.9]} 20. gxh5 {[%clk 0:02:41.4]} 20... Bxh5 {[%clk 0:01:30.5]} 21.
Kc2 {[%clk 0:02:43]} 21... g5 {[%clk 0:01:27.5]} 22. Nh2 {[%clk 0:02:38.2]}
22... Bg6+ {[%clk 0:01:24.2]} 23. Bd3 {[%clk 0:02:29.6]} 23... Bxd3+ {[%clk
0:01:10.6]} 24. Kxd3 {[%clk 0:02:31.5]} 24... Rg6 {[%clk 0:01:10.8]} 25. Kc3
{[%clk 0:02:15.6]} 25... Rf8 {[%clk 0:01:08.8]} 26. Ng4 {[%clk 0:02:03.5]} 26...
h5 {[%clk 0:01:07.8]} 27. Nh2 {[%clk 0:02:04.7]} 27... e5 {[%clk 0:01:00.4]} 28.
Ndf3 {[%clk 0:01:50.6]} 28... e4 {[%clk 0:00:55.5]} 29. Nh4 {[%clk 0:01:51.3]}
29... Rgg8 {[%clk 0:00:55.8]} 30. Nf5 {[%clk 0:01:52.1]} 30... Kd7 {[%clk
0:00:55.6]} 31. b4 {[%clk 0:01:30.4]} 31... Ke6 {[%clk 0:00:56.5]} 32. Nd6
{[%clk 0:01:31.7]} 32... f5 {[%clk 0:00:51.5]} 33. b5 {[%clk 0:01:27.9]} 33...
cxb5 {[%clk 0:00:46.1]} 34. Nxb5 {[%clk 0:01:29.8]} 34... Rg7 {[%clk 0:00:27.3]}
35. Ra1 {[%clk 0:01:28.4]} 35... f4 {[%clk 0:00:23.3]} 36. Ra6+ {[%clk
0:01:28.6]} 36... Kf7 {[%clk 0:00:10.6]} 37. Nc7 {[%clk 0:01:25.4]} 37... Rd8
{[%clk 0:00:05.3]} 38. Ne6 {[%clk 0:01:13.2]} 38... Rg6 {[%clk 0:00:05.1]} 39.
Nxd8+ {[%clk 0:01:13.7]} 1-0

[Event "*** Titled Tuesday 3|2 Blitz"]
[Site "Chess.com"]
[Date "2015.10.06"]
[Round "8"]
[White "lorcho"]
[Black "facu57"]
[Result "0-1"]
[WhiteElo "2589"]
[BlackElo "2536"]
[TimeControl "180+2"]
[EndTime "18:42:06 PDT"]
[Termination "facu57 won by resignation"]

1. e4 {[%clk 0:03:00.6]} 1... e5 {[%clk 0:02:57.8]} 2. Nf3 {[%clk 0:03:00.7]}
2... Nc6 {[%clk 0:02:59.7]} 3. Bb5 {[%clk 0:03:00.6]} 3... Nf6 {[%clk
0:02:58.6]} 4. Qe2 {[%clk 0:02:56.2]} 4... Bc5 {[%clk 0:02:55.4]} 5. c3 {[%clk
0:02:55.2]} 5... O-O {[%clk 0:02:53]} 6. O-O {[%clk 0:02:55.5]} 6... d6 {[%clk
0:02:53.2]} 7. Bxc6 {[%clk 0:02:50.7]} 7... bxc6 {[%clk 0:02:53.8]} 8. d4 {[%clk
0:02:52.3]} 8... exd4 {[%clk 0:02:47.2]} 9. cxd4 {[%clk 0:02:54.2]} 9... Bb6
{[%clk 0:02:49.1]} 10. Bg5 {[%clk 0:02:51.6]} 10... h6 {[%clk 0:02:47.8]} 11.
Bh4 {[%clk 0:02:52.5]} 11... Re8 {[%clk 0:02:44.5]} 12. Nbd2 {[%clk 0:02:45.4]}
12... Bg4 {[%clk 0:02:38.9]} 13. Rfe1 {[%clk 0:02:09.7]} 13... Bxf3 {[%clk
0:02:25.8]} 14. Nxf3 {[%clk 0:02:11.6]} 14... g5 {[%clk 0:02:23.4]} 15. Nxg5
{[%clk 0:01:57.2]} 15... hxg5 {[%clk 0:02:17.1]} 16. Bxg5 {[%clk 0:01:59.1]}
16... Bxd4 {[%clk 0:02:17.8]} 17. Rad1 {[%clk 0:02:00]} 17... c5 {[%clk
0:02:15.9]} 18. Qf3 {[%clk 0:01:48.6]} 18... Re6 {[%clk 0:02:01.6]} 19. e5
{[%clk 0:01:28.8]} 19... dxe5 {[%clk 0:01:49.1]} 20. b4 {[%clk 0:01:08.4]} 20...
Kg7 {[%clk 0:01:16.9]} 21. bxc5 {[%clk 0:01:03.9]} 21... Rb8 {[%clk 0:01:18.1]}
22. Qg3 {[%clk 0:00:55.6]} 22... Nh5 {[%clk 0:00:55]} 23. Qh4 {[%clk 0:00:42.4]}
23... Qh8 {[%clk 0:00:55.4]} 24. Rxd4 {[%clk 0:00:25.8]} 24... exd4 {[%clk
0:00:47.9]} 25. Rd1 {[%clk 0:00:17.6]} 25... Kg8 {[%clk 0:00:41.6]} 26. g4
{[%clk 0:00:11.4]} 26... Nf6 {[%clk 0:00:37.8]} 27. Qg3 {[%clk 0:00:11.8]} 27...
Ne4 {[%clk 0:00:37.6]} 28. Qxc7 {[%clk 0:00:12.5]} 28... Rf8 {[%clk 0:00:33.9]}
29. Bf4 {[%clk 0:00:11.7]} 29... Qh3 {[%clk 0:00:31]} 30. Bg3 {[%clk 0:00:09.9]}
30... Nxg3 {[%clk 0:00:28.6]} 31. Qxg3 {[%clk 0:00:03.4]} 31... Qxg3+ {[%clk
0:00:29.1]} 32. hxg3 {[%clk 0:00:05.3]} 32... Rd8 {[%clk 0:00:27.4]} 33. Rd3
{[%clk 0:00:05]} 33... Rc6 {[%clk 0:00:27.1]} 34. g5 {[%clk 0:00:06.3]} 34...
Rxc5 {[%clk 0:00:27.8]} 35. Kg2 {[%clk 0:00:07.1]} 35... Rc3 {[%clk 0:00:28.4]}
36. Rd1 {[%clk 0:00:08.6]} 36... d3 {[%clk 0:00:29.9]} 37. f4 {[%clk 0:00:09.3]}
37... d2 {[%clk 0:00:30.1]} 38. f5 {[%clk 0:00:10.4]} 0-1

[Event "*** Titled Tuesday 3|2 Blitz"]
[Site "Chess.com"]
[Date "2015.10.06"]
[Round "8"]
[White "Goala"]
[Black "simplerXiao"]
[Result "1-0"]
[WhiteElo "2195"]
[BlackElo "2419"]
[TimeControl "180+2"]
[EndTime "18:42:34 PDT"]
[Termination "Goala won by checkmate"]

1. d4 {[%clk 0:03:01.9]} 1... Nf6 {[%clk 0:02:59.4]} 2. c4 {[%clk 0:03:02.9]}
2... g6 {[%clk 0:02:59.9]} 3. Nc3 {[%clk 0:03:03.4]} 3... Bg7 {[%clk 0:03:01.6]}
4. e4 {[%clk 0:03:04.4]} 4... d6 {[%clk 0:03:01.7]} 5. h3 {[%clk 0:03:06.1]}
5... O-O {[%clk 0:03:02.9]} 6. Bg5 {[%clk 0:03:07.5]} 6... h6 {[%clk 0:03:02.1]}
7. Be3 {[%clk 0:03:07.8]} 7... e5 {[%clk 0:02:58.8]} 8. d5 {[%clk 0:03:09]} 8...
a5 {[%clk 0:02:59.6]} 9. Nf3 {[%clk 0:03:10.4]} 9... Na6 {[%clk 0:03:00.3]} 10.
g4 {[%clk 0:03:11.1]} 10... Nc5 {[%clk 0:02:57.4]} 11. Nd2 {[%clk 0:03:12.1]}
11... c6 {[%clk 0:02:55.6]} 12. Be2 {[%clk 0:03:13.3]} 12... cxd5 {[%clk
0:02:56.7]} 13. cxd5 {[%clk 0:03:14.6]} 13... a4 {[%clk 0:02:57.7]} 14. Bxc5
{[%clk 0:03:09.5]} 14... dxc5 {[%clk 0:02:58.6]} 15. Nxa4 {[%clk 0:03:11.1]}
15... b6 {[%clk 0:02:52.2]} 16. Qb3 {[%clk 0:02:50.9]} 16... Bd7 {[%clk
0:02:39.1]} 17. Nxb6 {[%clk 0:02:37.7]} 17... Rb8 {[%clk 0:02:39.4]} 18. Ndc4
{[%clk 0:02:36]} 18... Nxe4 {[%clk 0:02:39.5]} 19. a4 {[%clk 0:02:37.2]} 19...
Qh4 {[%clk 0:02:32.9]} 20. Qe3 {[%clk 0:01:39.8]} 20... f5 {[%clk 0:01:41.3]}
21. Nxd7 {[%clk 0:01:26.1]} 21... Rb3 {[%clk 0:01:41.1]} 22. Qxb3 {[%clk
0:01:17.9]} 22... Qxf2+ {[%clk 0:01:41.2]} 23. Kd1 {[%clk 0:01:19.5]} 23... Qd4+
{[%clk 0:01:41.6]} 24. Kc1 {[%clk 0:01:19.2]} 24... Rd8 {[%clk 0:01:27.9]} 25.
Rd1 {[%clk 0:01:04.8]} 25... Qf2 {[%clk 0:01:25.6]} 26. Qf3 {[%clk 0:01:06.4]}
26... Qh2 {[%clk 0:01:11.9]} 27. Rh1 {[%clk 0:00:59.7]} 27... Qg3 {[%clk
0:00:40.3]} 28. Ndb6 {[%clk 0:00:42.3]} 28... Qh4 {[%clk 0:00:37.3]} 29. a5
{[%clk 0:00:38.1]} 29... Bf6 {[%clk 0:00:38.3]} 30. a6 {[%clk 0:00:34.5]} 30...
Bg5+ {[%clk 0:00:30.9]} 31. Kb1 {[%clk 0:00:35.3]} 31... Ng3 {[%clk 0:00:22.3]}
32. Rg1 {[%clk 0:00:20.4]} 32... f4 {[%clk 0:00:23.4]} 33. a7 {[%clk 0:00:18.9]}
33... e4 {[%clk 0:00:24.8]} 34. Qf2 {[%clk 0:00:17.7]} 34... e3 {[%clk
0:00:25.2]} 35. Qf3 {[%clk 0:00:18.4]} 35... Qxh3 {[%clk 0:00:24.9]} 36. a8=Q
{[%clk 0:00:19.1]} 36... Qh2 {[%clk 0:00:25.7]} 37. Re1 {[%clk 0:00:11.1]} 37...
Qf2 {[%clk 0:00:25]} 38. Qxd8+ {[%clk 0:00:09.3]} 38... Bxd8 {[%clk 0:00:25.5]}
39. Ka2 {[%clk 0:00:10.1]} 39... Nxe2 {[%clk 0:00:18.3]} 40. Qxe2 {[%clk
0:00:10.7]} 40... Qg3 {[%clk 0:00:19.5]} 41. d6 {[%clk 0:00:10.5]} 41... Bg5
{[%clk 0:00:20.1]} 42. Qd3 {[%clk 0:00:11.2]} 42... f3 {[%clk 0:00:21.3]} 43.
Qxg6+ {[%clk 0:00:12.2]} 43... Kf8 {[%clk 0:00:22.1]} 44. Kb3 {[%clk 0:00:12.5]}
44... f2 {[%clk 0:00:23.3]} 45. Ra8+ {[%clk 0:00:13.6]} 45... Bd8 {[%clk
0:00:19.6]} 46. Rxd8# {[%clk 0:00:14.6]} 1-0

[Event "*** Titled Tuesday 3|2 Blitz"]
[Site "Chess.com"]
[Date "2015.10.06"]
[Round "8"]
[White "Po6Don"]
[Black "Assasin14"]
[Result "1-0"]
[WhiteElo "2047"]
[BlackElo "1751"]
[TimeControl "180+2"]
[EndTime "18:42:46 PDT"]
[Termination "Po6Don won by checkmate"]

1. e4 {[%clk 0:03:01.9]} 1... c5 {[%clk 0:03:00.5]} 2. c3 {[%clk 0:03:03.3]}
2... d5 {[%clk 0:03:00.5]} 3. exd5 {[%clk 0:03:04]} 3... Qxd5 {[%clk 0:03:02.4]}
4. Nf3 {[%clk 0:03:05.3]} 4... Nf6 {[%clk 0:03:01.2]} 5. d4 {[%clk 0:03:06.3]}
5... Bg4 {[%clk 0:03:01.3]} 6. Nbd2 {[%clk 0:03:07.2]} 6... e6 {[%clk
0:03:00.6]} 7. Bc4 {[%clk 0:03:06]} 7... Qd7 {[%clk 0:02:59.2]} 8. Qb3 {[%clk
0:03:00]} 8... cxd4 {[%clk 0:02:50.6]} 9. O-O {[%clk 0:02:53.4]} 9... dxc3
{[%clk 0:02:46]} 10. bxc3 {[%clk 0:02:46.7]} 10... Nc6 {[%clk 0:02:43.3]} 11.
Rb1 {[%clk 0:02:43.3]} 11... Rb8 {[%clk 0:02:30.7]} 12. Bb5 {[%clk 0:02:20]}
12... Bd6 {[%clk 0:02:23.3]} 13. Rd1 {[%clk 0:02:15.9]} 13... O-O {[%clk
0:02:02.6]} 14. Nc4 {[%clk 0:02:15.1]} 14... Nd5 {[%clk 0:02:00.3]} 15. Nxd6
{[%clk 0:02:15.3]} 15... Bxf3 {[%clk 0:01:54.5]} 16. gxf3 {[%clk 0:02:13.5]}
16... Qxd6 {[%clk 0:01:50.4]} 17. c4 {[%clk 0:02:14.8]} 17... a6 {[%clk
0:01:30]} 18. Ba3 {[%clk 0:02:08.4]} 18... Qf4 {[%clk 0:01:11.5]} 19. cxd5
{[%clk 0:02:09]} 19... Nd4 {[%clk 0:01:08]} 20. Rxd4 {[%clk 0:01:45.2]} 20...
Qxd4 {[%clk 0:01:00.5]} 21. Rd1 {[%clk 0:01:46]} 21... Qf6 {[%clk 0:00:34.1]}
22. Bxf8 {[%clk 0:01:46.8]} 22... Rxf8 {[%clk 0:00:29.4]} 23. Bf1 {[%clk
0:01:41]} 23... exd5 {[%clk 0:00:28.1]} 24. Rxd5 {[%clk 0:01:40.6]} 24... Qg6+
{[%clk 0:00:26.2]} 25. Kh1 {[%clk 0:01:38.6]} 25... h6 {[%clk 0:00:26.8]} 26.
Qd3 {[%clk 0:01:35.3]} 26... Qf6 {[%clk 0:00:27]} 27. Bh3 {[%clk 0:01:32.2]}
27... Re8 {[%clk 0:00:23.6]} 28. f4 {[%clk 0:01:10.4]} 28... g6 {[%clk
0:00:18.8]} 29. f5 {[%clk 0:01:10.3]} 29... g5 {[%clk 0:00:19.7]} 30. Qd4 {[%clk
0:01:07]} 30... Re1+ {[%clk 0:00:18.9]} 31. Kg2 {[%clk 0:01:07.6]} 31... Qc6
{[%clk 0:00:14.3]} 32. Bg4 {[%clk 0:00:48.9]} 32... Re8 {[%clk 0:00:10.8]} 33.
Bf3 {[%clk 0:00:49.8]} 33... Qc1 {[%clk 0:00:09.1]} 34. Rd8 {[%clk 0:00:48]}
34... Qe1 {[%clk 0:00:08.7]} 35. Rxe8+ {[%clk 0:00:48.2]} 35... Qxe8 {[%clk
0:00:10.6]} 36. Bxb7 {[%clk 0:00:49.1]} 36... Kh7 {[%clk 0:00:10.7]} 37. f6
{[%clk 0:00:48.6]} 37... a5 {[%clk 0:00:12.6]} 38. Qe4+ {[%clk 0:00:47.2]} 38...
Qxe4+ {[%clk 0:00:12.9]} 39. Bxe4+ {[%clk 0:00:49.1]} 39... Kh8 {[%clk
0:00:14.5]} 40. Kg3 {[%clk 0:00:49.5]} 40... Kg8 {[%clk 0:00:15.9]} 41. h4
{[%clk 0:00:50.5]} 41... Kf8 {[%clk 0:00:16.7]} 42. hxg5 {[%clk 0:00:49.3]}
42... hxg5 {[%clk 0:00:17.7]} 43. Kg4 {[%clk 0:00:51.2]} 43... Ke8 {[%clk
0:00:19.6]} 44. Kxg5 {[%clk 0:00:52.2]} 44... Kd7 {[%clk 0:00:20.8]} 45. f4
{[%clk 0:00:51.4]} 45... Ke6 {[%clk 0:00:22]} 46. Bg6 {[%clk 0:00:51.4]} 46...
a4 {[%clk 0:00:21.1]} 47. a3 {[%clk 0:00:44.6]} 47... fxg6 {[%clk 0:00:21]} 48.
Kxg6 {[%clk 0:00:45.8]} 48... Kd5 {[%clk 0:00:22.9]} 49. f7 {[%clk 0:00:47]}
49... Kc4 {[%clk 0:00:24.8]} 50. f8=Q {[%clk 0:00:48.5]} 50... Kb3 {[%clk
0:00:26.7]} 51. Qb4+ {[%clk 0:00:49.5]} 51... Ka2 {[%clk 0:00:27.7]} 52. Qxa4
{[%clk 0:00:50.6]} 52... Kb2 {[%clk 0:00:29.6]} 53. Qb4+ {[%clk 0:00:51.8]}
53... Kc2 {[%clk 0:00:29.6]} 54. a4 {[%clk 0:00:53.3]} 54... Kd3 {[%clk
0:00:31.5]} 55. a5 {[%clk 0:00:55.2]} 55... Ke2 {[%clk 0:00:33.4]} 56. a6 {[%clk
0:00:56.6]} 56... Kf3 {[%clk 0:00:35.3]} 57. f5 {[%clk 0:00:58]} 57... Ke3
{[%clk 0:00:36.4]} 58. a7 {[%clk 0:00:59.9]} 58... Ke2 {[%clk 0:00:38.3]} 59.
a8=Q {[%clk 0:01:01.2]} 59... Kf2 {[%clk 0:00:40.2]} 60. Qaa3 {[%clk 0:01:01.5]}
60... Kf1 {[%clk 0:00:40.6]} 61. Qbb2 {[%clk 0:01:02.9]} 61... Ke1 {[%clk
0:00:42]} 62. Qaa1# {[%clk 0:01:02.9]} 1-0

[Event "*** Titled Tuesday 3|2 Blitz"]
[Site "Chess.com"]
[Date "2015.10.06"]
[Round "8"]
[White "josiwales"]
[Black "NMofPuppets"]
[Result "1-0"]
[WhiteElo "2041"]
[BlackElo "2148"]
[TimeControl "180+2"]
[EndTime "18:43:22 PDT"]
[Termination "josiwales won by resignation"]

1. e4 {[%clk 0:03:01.9]} 1... e5 {[%clk 0:03:00.4]} 2. Nf3 {[%clk 0:03:02.2]}
2... Nc6 {[%clk 0:03:01.9]} 3. Bb5 {[%clk 0:03:03.1]} 3... a6 {[%clk 0:03:03.2]}
4. Ba4 {[%clk 0:03:04.1]} 4... Nf6 {[%clk 0:03:04.1]} 5. O-O {[%clk 0:03:05.2]}
5... Be7 {[%clk 0:03:04.9]} 6. Re1 {[%clk 0:03:06.3]} 6... b5 {[%clk 0:03:06.5]}
7. Bb3 {[%clk 0:03:07.3]} 7... O-O {[%clk 0:03:07.8]} 8. h3 {[%clk 0:03:07.4]}
8... d6 {[%clk 0:03:04.5]} 9. c3 {[%clk 0:03:08.4]} 9... Na5 {[%clk 0:03:00.8]}
10. Bc2 {[%clk 0:03:09.8]} 10... c5 {[%clk 0:03:02.3]} 11. d3 {[%clk 0:03:11.4]}
11... Bd7 {[%clk 0:02:53]} 12. Be3 {[%clk 0:03:12.8]} 12... Qc7 {[%clk 0:02:54]}
13. Nbd2 {[%clk 0:03:13.8]} 13... Rfd8 {[%clk 0:02:47.1]} 14. Nf1 {[%clk
0:03:14.1]} 14... d5 {[%clk 0:02:29.4]} 15. exd5 {[%clk 0:03:07.7]} 15... Nxd5
{[%clk 0:02:31.3]} 16. Rc1 {[%clk 0:03:06.7]} 16... Re8 {[%clk 0:02:01.8]} 17.
d4 {[%clk 0:03:03.1]} 17... Nxe3 {[%clk 0:01:49.2]} 18. Nxe3 {[%clk 0:03:01.9]}
18... exd4 {[%clk 0:01:44.7]} 19. cxd4 {[%clk 0:03:03]} 19... c4 {[%clk
0:01:45.4]} 20. Be4 {[%clk 0:02:57.5]} 20... Rad8 {[%clk 0:01:44]} 21. d5 {[%clk
0:02:55.9]} 21... Bb4 {[%clk 0:01:29.2]} 22. d6 {[%clk 0:02:50.2]} 22... Qc5
{[%clk 0:01:10.2]} 23. Nd5 {[%clk 0:02:32.9]} 23... Bxe1 {[%clk 0:01:07.5]} 24.
Ne7+ {[%clk 0:02:22]} 24... Kh8 {[%clk 0:01:02.8]} 25. Nxe1 {[%clk 0:01:59.9]}
25... Nc6 {[%clk 0:00:50.5]} 26. b4 {[%clk 0:01:25.7]} 26... Nxb4 {[%clk
0:00:34.2]} 27. Qf3 {[%clk 0:01:02.6]} 27... Rxe7 {[%clk 0:00:21.8]} 28. dxe7
{[%clk 0:01:00.4]} 28... Qxe7 {[%clk 0:00:23.4]} 29. Rd1 {[%clk 0:00:52.3]}
29... Nxa2 {[%clk 0:00:22.3]} 30. Nc2 {[%clk 0:00:47.3]} 30... b4 {[%clk
0:00:18.9]} 31. Ne3 {[%clk 0:00:43.1]} 31... c3 {[%clk 0:00:18.6]} 32. Nd5
{[%clk 0:00:38.5]} 32... Qe6 {[%clk 0:00:18.8]} 33. Nf4 {[%clk 0:00:34.9]} 33...
Qe7 {[%clk 0:00:19.5]} 34. Nd5 {[%clk 0:00:35.4]} 34... Qe8 {[%clk 0:00:20.1]}
35. Re1 {[%clk 0:00:26.4]} 35... Be6 {[%clk 0:00:19]} 36. Qh5 {[%clk 0:00:24.5]}
36... g6 {[%clk 0:00:18.1]} 37. Qe5+ {[%clk 0:00:24.9]} 37... Kg8 {[%clk
0:00:14]} 38. Nf6+ {[%clk 0:00:25.3]} 38... Kf8 {[%clk 0:00:13]} 39. Nxe8 {[%clk
0:00:20.9]} 39... Rxe8 {[%clk 0:00:14.9]} 40. Qh8+ {[%clk 0:00:18.7]} 40... Ke7
{[%clk 0:00:16.5]} 41. Qd4 {[%clk 0:00:19.6]} 41... Rd8 {[%clk 0:00:15.4]} 42.
Qa7+ {[%clk 0:00:19.7]} 42... Rd7 {[%clk 0:00:16.4]} 43. Qxa6 {[%clk 0:00:20.7]}
43... b3 {[%clk 0:00:16.4]} 44. Qa3+ {[%clk 0:00:20.8]} 44... Ke8 {[%clk
0:00:15.9]} 45. Bc6 {[%clk 0:00:21.9]} 45... c2 {[%clk 0:00:15.1]} 46. Bxd7+
{[%clk 0:00:22.7]} 46... Kxd7 {[%clk 0:00:15.6]} 47. Qb2 {[%clk 0:00:23.3]}
47... Nb4 {[%clk 0:00:14.1]} 48. Qd4+ {[%clk 0:00:23.2]} 48... Nd5 {[%clk
0:00:12.9]} 49. Qb2 {[%clk 0:00:23.6]} 49... Nb4 {[%clk 0:00:11.8]} 50. Qd4+
{[%clk 0:00:21.8]} 50... Nd5 {[%clk 0:00:13]} 51. Qa7+ {[%clk 0:00:23]} 51...
Ke8 {[%clk 0:00:12.4]} 52. Qb7 {[%clk 0:00:21.9]} 52... Kf8 {[%clk 0:00:10]} 53.
Qxb3 {[%clk 0:00:21.5]} 53... Kg7 {[%clk 0:00:08.3]} 54. Qxc2 {[%clk 0:00:22.5]}
54... Nf4 {[%clk 0:00:08.9]} 55. Qc3+ {[%clk 0:00:22.9]} 55... f6 {[%clk
0:00:09.4]} 56. Qc7+ {[%clk 0:00:22]} 1-0